bitfinex/quotes_BTCUSD_20250403
["timestamp","ask_amount","ask_price","bid_price","bid_amount"]
[1743697446733,0.00914832,82244.0,82243.0,0.28331288]
[1743697446957,0.012158,82250.0,82240.0,0.24319]
[1743697447100,0.243169,82248.0,82241.0,0.243187]
[1743697447302,0.243169,82248.0,82242.0,0.243184]
[1743697447511,0.255336,82245.0,82239.0,0.0923]
[1743697447706,0.255324,82249.0,82241.0,0.243187]
[1743697447910,0.03587552,82250.0,82241.0,0.243187]
[1743697447911,0.02371752,82250.0,82249.0,0.255322]
[1743697448119,1.05068,82262.0,82253.0,0.243151]
[1743697448319,1.05983692,82262.0,82257.0,0.012157]
[1743697448539,1.05983692,82262.0,82257.0,0.255296]
[1743697448744,0.012157,82252.0,82244.0,0.243177]
[1743697448940,0.012158,82250.0,82240.0,0.255349]
[1743697449146,0.012157,82251.0,82240.0,0.012159]
[1743697449493,0.012157,82251.0,82242.0,0.012159]
[1743697449661,0.243159,82251.0,82243.0,0.012159]
[1743697449857,0.243159,82251.0,82233.0,0.01216]
[1743697449858,0.012158,82247.0,82233.0,0.01216]
[1743697450160,0.255352,82239.0,82231.0,0.0475]
[1743697450369,0.012159,82242.0,82232.0,0.255373]
[1743697450565,0.243187,82241.0,82234.0,0.243207]
[1743697450775,0.255343,82243.0,82235.0,0.243204]
[1743697451117,0.243162,82250.0,82231.0,0.05966]
[1743697451118,0.243158,82251.0,82243.0,0.012159]
[1743697451280,0.243165,82249.0,82241.0,0.012159]
[1743697451477,0.243167,82248.0,82241.0,0.255345]
[1743697451685,0.255319,82250.0,82241.0,0.255344]
[1743697451887,0.012158,82250.0,82241.0,0.255344]
[1743697452277,0.243161,82250.0,82243.0,0.243181]
[1743697452713,0.255319,82250.0,82242.0,0.255343]
[1743697453048,0.255319,82250.0,82241.0,0.255344]
[1743697453049,0.243168,82248.0,82241.0,0.255344]
[1743697453167,0.243167,82248.0,82241.0,0.255344]
[1743697453371,0.36606597,82251.0,82242.0,0.243184]
[1743697453799,0.12290297,82251.0,82245.0,0.243173]
[1743697454003,0.12290297,82251.0,82247.0,0.243169]
[1743697454224,0.012156,82259.0,82250.0,0.012158]
[1743697454419,1.08380693,82262.0,82253.0,0.012157]
[1743697454621,0.12290297,82261.0,82254.0,0.243148]
[1743697454823,1.08380693,82262.0,82260.0,0.243131]
[1743697455098,1.08380693,82262.0,82258.0,0.243135]
[1743697456222,1.08380693,82262.0,82254.0,0.012157]
[1743697456223,0.19969172,82261.0,82250.0,0.0463]
[1743697456423,0.255299,82257.0,82250.0,0.24316]
[1743697456645,0.243144,82256.0,82250.0,0.24316]
[1743697456788,0.255299,82257.0,82250.0,0.24316]
[1743697457327,0.012157,82256.0,82244.0,0.057658]
[1743697457501,0.012157,82256.0,82247.0,0.243169]
[1743697457502,0.255305,82255.0,82247.0,0.243169]
[1743697457824,0.012157,82257.0,82251.0,0.243157]
[1743697458027,0.243139,82258.0,82252.0,0.243154]
[1743697458254,0.243141,82257.0,82251.0,0.243157]
[1743697459699,1.08380693,82262.0,82256.0,0.012157]
[1743697459910,1.08380693,82262.0,82258.0,0.012156]
[1743697460114,1.08380693,82262.0,82259.0,0.243134]
[1743697460257,1.08380693,82262.0,82258.0,0.25529]
[1743697460437,1.14689813,82262.0,82255.0,0.243137]
[1743697460639,1.14689813,82262.0,82247.0,0.012158]
[1743697460640,0.012156,82258.0,82247.0,0.012158]
[1743697460865,0.255297,82257.0,82249.0,0.255321]
[1743697461066,0.255293,82258.0,82249.0,0.255321]
[1743697461263,0.243134,82259.0,82251.0,0.012157]
[1743697461477,0.12290297,82259.0,82255.0,0.255302]
[1743697461673,0.12290297,82259.0,82251.0,0.012157]
[1743697461900,1.14689913,82262.0,82256.0,0.243142]
[1743697462103,1.15905513,82262.0,82255.0,0.243145]
[1743697462275,0.243136,82259.0,82253.0,0.243149]
[1743697462610,0.241543,82256.0,82251.0,0.243156]
[1743697462816,0.243152,82253.0,82246.0,0.012158]
[1743697462969,0.255309,82253.0,82247.0,0.243169]
[1743697463182,0.255309,82253.0,82243.0,0.012159]
[1743697463183,0.243172,82247.0,82237.0,0.012159]
[1743697463418,0.255327,82248.0,82242.0,0.243183]
[1743697463741,0.255352,82239.0,82238.0,5.584e-05]
[1743697463942,0.37825497,82239.0,82238.0,5.584e-05]
[1743697464154,1.33462197,82239.0,82238.0,5.584e-05]
[1743697464322,0.012163,82216.0,82207.0,0.012164]
[1743697464529,0.012163,82216.0,82203.0,0.047]
[1743697464530,0.012163,82210.0,82203.0,0.047]
[1743697464725,0.255441,82211.0,82203.0,0.302462]
[1743697464926,0.243278,82211.0,82203.0,0.302462]
[1743697465154,0.243271,82213.0,82206.0,0.243289]
[1743697465327,0.243276,82211.0,82204.0,0.25546]
[1743697465527,0.012164,82208.0,82203.0,0.047]
[1743697465766,0.243288,82207.0,82202.0,0.0484]
[1743697465940,0.255471,82201.0,82200.0,4e-05]
[1743697466140,0.38767809,82201.0,82200.0,4e-05]
[1743697467155,0.37551309,82201.0,82183.0,0.0487]
[1743697467330,0.37551309,82201.0,82179.0,0.012168]
[1743697467331,0.012167,82187.0,82179.0,0.012168]
[1743697467567,0.03932402,82186.0,82181.0,0.243363]
[1743697467730,0.28267502,82186.0,82180.0,0.243367]
[1743697467933,0.243344,82189.0,82182.0,0.243361]
[1743697468134,0.243346,82188.0,82180.0,0.255535]
[1743697468573,0.243351,82186.0,82180.0,0.243367]
[1743697468755,0.243353,82185.0,82179.0,0.255538]
[1743697469116,0.28267702,82185.0,82179.0,0.255538]
[1743697469266,0.012167,82185.0,82178.0,0.0491]
[1743697469447,0.243359,82183.0,82178.0,0.0491]
[1743697469656,0.00904395,82183.0,82178.0,0.0491]
[1743697469834,0.1474,82189.0,82183.0,0.012167]
[1743697470038,0.1474,82189.0,82187.0,0.255511]
[1743697470239,0.243324,82195.0,82189.0,0.243341]
[1743697470672,0.243327,82194.0,82188.0,0.243344]
[1743697471100,0.24333,82193.0,82187.0,0.243346]
[1743697471500,4.587e-05,82195.0,82190.0,0.243338]
[1743697471889,4.587e-05,82195.0,82191.0,0.243332]
[1743697472092,4.587e-05,82195.0,82190.0,0.243338]
[1743697472486,4.587e-05,82195.0,82191.0,0.012166]
[1743697472687,4.587e-05,82195.0,82194.0,0.012166]
[1743697472912,4.587e-05,82195.0,82193.0,0.243329]
[1743697473215,4.587e-05,82195.0,82194.0,0.012166]
[1743697473414,4.587e-05,82195.0,82194.0,0.059266]
[1743697475053,4.587e-05,82195.0,82194.0,0.06169899]
[1743697475257,4.587e-05,82195.0,82194.0,0.11029899]
[1743697475686,4.587e-05,82195.0,82194.0,0.23320196]
[1743697477183,4.587e-05,82195.0,82194.0,0.38064196]
[1743697477392,4.587e-05,82195.0,82194.0,0.37820897]
[1743697478856,4.587e-05,82195.0,82194.0,0.62153497]
[1743697480148,0.012159,82240.0,82233.0,0.01216]
[1743697480352,0.2432,82237.0,82232.0,0.255373]
[1743697480568,0.27595587,82237.0,82233.0,0.243211]
[1743697480788,0.03275587,82237.0,82233.0,0.243211]
[1743697480997,0.243197,82238.0,82232.0,0.255373]
[1743697481265,0.243199,82237.0,82232.0,0.255373]
[1743697482414,0.02362366,82237.0,82236.0,0.243202]
[1743697482642,0.001046,82240.0,82232.0,0.01216]
[1743697483179,0.243195,82239.0,82233.0,0.24321]
[1743697483905,0.243195,82239.0,82232.0,0.243214]
[1743697483906,0.243197,82238.0,82232.0,0.243214]
[1743697484109,0.243197,82238.0,82233.0,0.24321]
[1743697485241,0.243197,82238.0,82237.0,0.243199]
[1743697485242,0.02354026,82238.0,82237.0,0.243199]
[1743697485483,0.02354026,82238.0,82237.0,0.255358]
[1743697485686,4.6e-05,82240.0,82239.0,0.255352]
[1743697486984,4.6e-05,82240.0,82239.0,0.301752]
[1743697487512,4.6e-05,82240.0,82239.0,0.42465497]
[1743697489275,4.6e-05,82240.0,82239.0,0.301752]
[1743697489864,0.02394693,82240.0,82239.0,0.301752]
[1743697490073,0.243194,82239.0,82234.0,0.01216]
[1743697490286,0.243206,82235.0,82227.0,0.012161]
[1743697490414,0.012159,82237.0,82228.0,0.012161]
[1743697490626,0.243208,82234.0,82230.0,0.243217]
[1743697490824,0.243208,82234.0,82228.0,0.012161]
[1743697490825,0.243225,82229.0,82224.0,0.012161]
[1743697491044,0.243208,82234.0,82228.0,0.243225]
[1743697491287,0.00919433,82234.0,82233.0,0.24321]
[1743697491491,0.243195,82239.0,82233.0,0.25537]
[1743697491896,0.243199,82238.0,82233.0,0.25537]
[1743697492050,0.02445434,82240.0,82235.0,0.243204]
[1743697492248,0.02445434,82240.0,82239.0,0.255352]
[1743697495064,0.02445434,82240.0,82234.0,0.243208]
[1743697495065,0.03661334,82240.0,82231.0,0.255376]
[1743697495314,0.27980434,82240.0,82236.0,0.243202]
[1743697495732,0.26764534,82240.0,82236.0,0.243202]
[1743697495953,0.02445434,82240.0,82236.0,0.01216]
[1743697496313,0.02445434,82240.0,82237.0,0.243198]
[1743697498863,0.243194,82239.0,82231.0,0.01216]
[1743697499187,0.02445434,82240.0,82238.0,0.243196]
[1743697499396,0.02445434,82240.0,82239.0,0.255352]
[1743697502164,0.02445434,82240.0,82239.0,0.301252]
[1743697503428,0.02445434,82240.0,82239.0,0.336093]
[1743697503676,0.02445434,82240.0,82239.0,0.290193]
[1743697503895,0.02445434,82240.0,82239.0,0.243193]
[1743697504465,0.02445434,82240.0,82239.0,0.255352]
[1743697506726,0.243193,82239.0,82235.0,0.01216]
[1743697506931,0.03661334,82240.0,82234.0,0.01216]
[1743697507102,0.02445434,82240.0,82237.0,0.243197]
[1743697507307,0.26764534,82240.0,82238.0,0.243196]
[1743697507706,0.26764534,82240.0,82232.0,0.01216]
[1743697507969,0.243195,82239.0,82233.0,0.243211]
[1743697508097,0.243196,82238.0,82234.0,0.255368]
[1743697508320,0.243202,82236.0,82233.0,0.243211]
[1743697508703,0.012162,82219.0,82215.0,0.0473]
[1743697508895,0.012163,82215.0,82205.0,0.243294]
[1743697509006,0.243274,82212.0,82208.0,0.243283]
[1743697509207,0.012163,82213.0,82208.0,0.012164]
[1743697509208,0.243271,82213.0,82208.0,0.012164]
[1743697509415,0.24327,82214.0,82209.0,0.243279]
[1743697509621,0.51079334,82240.0,82200.0,0.338008]
[1743697509622,0.243299,82204.0,82200.0,0.338008]
[1743697509845,0.243291,82207.0,82201.0,0.243306]
[1743697510046,0.243295,82205.0,82200.0,0.0474]
[1743697510242,0.012166,82195.0,82190.0,0.243337]
[1743697510447,0.012165,82198.0,82190.0,0.00013798]
[1743697510746,0.243307,82201.0,82195.0,0.012166]
[1743697511211,0.255467,82203.0,82196.0,0.012166]
[1743697511539,0.255462,82204.0,82196.0,0.012166]
[1743697511540,0.012165,82202.0,82196.0,0.012166]
[1743697511655,0.00895,82205.0,82202.0,0.243303]
[1743697511860,0.012164,82207.0,82201.0,0.255468]
[1743697512059,0.12290297,82207.0,82191.0,0.243333]
[1743697512279,0.255481,82198.0,82192.0,0.012166]
[1743697512484,0.012165,82203.0,82196.0,0.012166]
[1743697512737,0.243306,82201.0,82196.0,0.243319]
[1743697512908,0.243306,82201.0,82197.0,0.243317]
[1743697513114,0.243306,82201.0,82196.0,0.243319]
[1743697513430,0.243315,82198.0,82195.0,0.255487]
[1743697513593,0.255475,82200.0,82195.0,0.255487]
[1743697513792,0.255475,82200.0,82196.0,0.243318]
[1743697514243,0.243313,82199.0,82195.0,0.012166]
[1743697514452,0.243313,82199.0,82195.0,0.255489]
[1743697515168,0.243328,82194.0,82165.0,0.486819]
[1743697515384,0.243329,82193.0,82189.0,0.24334]
[1743697515552,0.243329,82193.0,82190.0,0.24347598]
[1743697516158,0.243332,82192.0,82190.0,0.00013798]
[1743697516366,0.02181201,82192.0,82190.0,0.24347498]
[1743697516560,0.243329,82193.0,82190.0,0.24347498]
[1743697516784,0.243329,82193.0,82190.0,0.00013798]
[1743697516785,0.06194504,82191.0,82190.0,0.00013798]
[1743697517093,0.19701401,82191.0,82190.0,0.00013798]
[1743697517463,0.19701401,82191.0,82190.0,0.00017798]
[1743697518084,1.24829401,82191.0,82190.0,0.00017798]
[1743697518935,1.24829401,82191.0,82068.0,0.06053639]
[1743697518936,0.25556,82172.0,82171.0,0.004]
[1743697519143,0.243421,82162.0,82154.0,0.012172]
[1743697519272,0.01217,82163.0,82154.0,0.243445]
[1743697519273,0.255598,82160.0,82154.0,0.243445]
[1743697519485,0.243431,82159.0,82154.0,0.243445]
[1743697519683,0.25559,82163.0,82157.0,0.255605]
[1743697520125,0.05149502,82162.0,82157.0,0.255605]
[1743697520551,0.29491702,82162.0,82158.0,0.243431]
[1743697520751,0.243419,82163.0,82158.0,0.255602]
[1743697520956,0.243422,82162.0,82158.0,0.255602]
[1743697521262,0.24342,82163.0,82158.0,0.255602]
[1743697521454,0.2434,82170.0,82161.0,0.255595]
[1743697521585,0.243397,82171.0,82166.0,0.01217]
[1743697521939,0.243397,82171.0,82156.0,0.243436]
[1743697521940,0.14732,82185.0,82180.0,0.243366]
[1743697522105,0.243365,82181.0,82176.0,0.255548]
[1743697522305,0.012168,82182.0,82176.0,0.012169]
[1743697522516,0.243371,82179.0,82175.0,0.24338]
[1743697522713,0.12290297,82184.0,82178.0,0.012168]
[1743697522911,0.012168,82182.0,82175.0,0.012169]
[1743697523112,0.243365,82181.0,82175.0,0.255549]
[1743697523517,0.02112225,82187.0,82173.0,0.00046021]
[1743697523518,0.00895525,82187.0,82184.0,0.012167]
[1743697523747,0.012167,82185.0,82179.0,0.255537]
[1743697523910,0.255521,82185.0,82181.0,0.243364]
[1743697524104,0.243354,82185.0,82180.0,0.255534]
[1743697524308,0.012167,82185.0,82172.0,0.012169]
[1743697524508,0.012168,82177.0,82173.0,0.00046021]
[1743697524733,0.243376,82178.0,82174.0,0.243385]
[1743697524934,0.255545,82177.0,82173.0,0.00046021]
[1743697525269,0.255541,82179.0,82174.0,0.243385]
[1743697525614,0.243373,82179.0,82175.0,0.24338]
[1743697525823,0.243374,82178.0,82173.0,0.00046021]
[1743697526029,0.012168,82179.0,82173.0,0.00046021]
[1743697526243,0.012167,82186.0,82177.0,0.012168]
[1743697526446,0.243351,82186.0,82182.0,0.012168]
[1743697526673,0.243357,82184.0,82181.0,0.243365]
[1743697526871,0.012167,82185.0,82179.0,0.243369]
[1743697527082,0.243363,82182.0,82179.0,0.243369]
[1743697527611,0.24336,82183.0,82180.0,0.243367]
[1743697528016,0.255524,82184.0,82180.0,0.243367]
[1743697528215,0.255523,82185.0,82180.0,0.012168]
[1743697528644,0.255523,82185.0,82182.0,0.243361]
[1743697529053,0.243357,82184.0,82181.0,0.243364]
[1743697529387,0.243354,82185.0,82182.0,0.25553]
[1743697529593,0.243354,82185.0,82174.0,0.012209]
[1743697529594,0.243356,82184.0,82174.0,0.012209]
[1743697529941,0.255544,82178.0,82174.0,4e-05]
[1743697530115,0.243378,82177.0,82174.0,0.243424]
[1743697530321,0.012168,82177.0,82174.0,0.243424]
[1743697530517,0.255544,82178.0,82174.0,0.243424]
[1743697530727,0.243377,82179.0,82176.0,0.243379]
[1743697531327,0.243377,82179.0,82174.0,0.255593]
[1743697531328,0.243383,82175.0,82174.0,4e-05]
[1743697531706,0.255552,82175.0,82174.0,4e-05]
[1743697532227,0.37845497,82175.0,82174.0,4e-05]
[1743697532690,0.49695697,82175.0,82174.0,4e-05]
[1743697533853,0.51829097,82175.0,82174.0,4e-05]
[1743697534250,0.37845497,82175.0,82174.0,4e-05]
[1743697535177,1.43025497,82175.0,82174.0,4e-05]
[1743697536161,1.55315265,82175.0,82174.0,4e-05]
[1743697536367,2.19179165,82175.0,82174.0,4e-05]
[1743697536883,1.55315265,82175.0,82174.0,4e-05]
[1743697537110,2.42995197,82175.0,82174.0,4e-05]
[1743697537449,2.15777697,82175.0,82174.0,4e-05]
[1743697537662,0.0459,82174.0,82139.0,0.0459]
[1743697537824,0.243468,82146.0,82139.0,0.0459]
[1743697538034,0.243468,82147.0,82141.0,0.00413809]
[1743697538241,0.24348,82143.0,82141.0,0.00413809]
[1743697538622,0.24348,82142.0,82141.0,0.00413809]
[1743697539220,0.255654,82142.0,82141.0,0.00413809]
[1743697539419,0.3579135,82142.0,82141.0,0.00413809]
[1743697539938,0.37933802,82142.0,82141.0,0.00413809]
[1743697540117,0.27707852,82142.0,82141.0,0.00413809]
[1743697540672,0.03078633,82142.0,82141.0,0.00413809]
[1743697541028,0.24348,82142.0,82141.0,0.00413809]
[1743697541629,0.255654,82142.0,82141.0,0.00413809]
[1743697541824,0.255654,82142.0,82141.0,0.00417809]
[1743697542030,0.5318126,82142.0,82141.0,0.00417809]
[1743697542369,0.8474366,82142.0,82141.0,0.00417809]
[1743697542918,0.8474366,82142.0,82141.0,1e-08]
[1743697543057,0.5318126,82142.0,82141.0,1e-08]
[1743697544702,0.5338126,82142.0,82141.0,1e-08]
[1743697545465,0.5358126,82142.0,82141.0,1e-08]
[1743697547195,0.41291492,82142.0,82141.0,1e-08]
[1743697547987,0.41091492,82142.0,82141.0,1e-08]
[1743697548556,0.243546,82120.0,82118.0,0.0497]
[1743697548802,0.243546,82120.0,82086.0,0.025]
[1743697548803,0.255747,82112.0,82109.0,0.0454]
[1743697548969,0.255747,82112.0,82111.0,0.00446066]
[1743697549195,0.37864997,82112.0,82111.0,0.00446066]
[1743697549827,0.255782,82101.0,82100.0,4e-05]
[1743697550026,0.255782,82101.0,82100.0,8.587e-05]
[1743697550178,0.243599,82102.0,82100.0,8.587e-05]
[1743697550384,0.14736,82103.0,82102.0,0.012179]
[1743697550588,0.14736,82103.0,82101.0,0.243601]
[1743697550813,0.390956,82103.0,82100.0,0.24368887]
[1743697551492,0.14736,82103.0,82101.0,0.2436]
[1743697551859,0.14736,82103.0,82101.0,0.25578]
[1743697552199,0.255766,82107.0,82103.0,0.012179]
[1743697552200,0.243586,82107.0,82103.0,0.012179]
[1743697552453,0.243586,82107.0,82104.0,0.243592]
[1743697552655,0.403073,82110.0,82105.0,0.24359]
[1743697552656,0.243581,82109.0,82105.0,0.24359]
[1743697552831,0.243587,82107.0,82103.0,0.255774]
[1743697553033,0.36648497,82108.0,82104.0,0.012179]
[1743697553234,0.12290297,82108.0,82103.0,0.012179]
[1743697553432,0.243585,82107.0,82103.0,0.255773]
[1743697553749,0.243585,82107.0,82102.0,0.012179]
[1743697553750,0.14736,82115.0,82108.0,0.012179]
[1743697553950,0.671535,82116.0,82112.0,0.243569]
[1743697554215,0.4158,82116.0,82113.0,0.255744]
[1743697554401,0.4158,82116.0,82112.0,0.243569]
[1743697554402,0.243561,82115.0,82112.0,0.243569]
[1743697554598,0.4158,82116.0,82112.0,0.243569]
[1743697554799,0.659358,82116.0,82113.0,0.243566]
[1743697555184,0.4158,82116.0,82113.0,0.255744]
[1743697556287,0.659358,82116.0,82113.0,0.255744]
[1743697556538,0.4158,82116.0,82113.0,0.255744]
[1743697557705,1.17513768,82114.0,82111.0,0.243572]
[1743697557921,1.41870168,82114.0,82111.0,0.243572]
[1743697558148,1.17513768,82114.0,82111.0,0.243572]
[1743697558371,1.17513768,82114.0,82111.0,0.243571]
[1743697558531,1.18445656,82114.0,82112.0,0.243569]
[1743697558709,0.09938275,82113.0,82112.0,0.243569]
[1743697558911,0.34294875,82113.0,82110.0,0.255753]
[1743697559227,0.09938275,82113.0,82111.0,0.243571]
[1743697559853,0.09938275,82113.0,82110.0,0.243569]
[1743697560049,0.012179,82104.0,82097.0,0.0454]
[1743697560304,0.243596,82103.0,82097.0,0.0454]
[1743697560475,0.243602,82101.0,82097.0,0.289011]
[1743697560877,0.243602,82101.0,82097.0,0.0454]
[1743697561081,0.243602,82101.0,82096.0,0.049]
[1743697561312,0.255782,82101.0,82091.0,0.012181]
[1743697561497,1.55242597,82101.0,82084.0,0.0484]
[1743697561713,0.87237865,82101.0,82088.0,0.24364]
[1743697561901,0.58207665,82101.0,82088.0,0.24364]
[1743697562059,0.82567865,82101.0,82085.0,0.012182]
[1743697562265,0.82567865,82101.0,82087.0,0.243643]
[1743697562266,0.71496097,82101.0,82087.0,0.243643]
[1743697562461,0.71496097,82101.0,82085.0,0.012182]
[1743697562462,0.71496097,82101.0,82086.0,0.243646]
[1743697562782,0.71496097,82101.0,82066.0,0.487412]
[1743697562783,0.243658,82082.0,82076.0,0.058783]
[1743697562985,0.243658,82083.0,82081.0,0.00413807]
[1743697563308,0.36656097,82082.0,82081.0,0.00413807]
[1743697563488,0.243638,82089.0,82083.0,0.012182]
[1743697563689,0.243645,82087.0,82083.0,0.243653]
[1743697563866,0.159541,82090.0,82084.0,0.255833]
[1743697564099,0.14736,82090.0,82087.0,0.243643]
[1743697564306,0.14736,82090.0,82087.0,0.255825]
[1743697564583,0.390996,82090.0,82086.0,0.012182]
[1743697564731,0.390996,82090.0,82086.0,0.255827]
[1743697564949,0.14736,82090.0,82087.0,0.243643]
[1743697565145,0.14736,82090.0,82088.0,0.243639]
[1743697565351,0.24364,82089.0,82085.0,0.255829]
[1743697565574,0.14736,82090.0,82088.0,0.24364]
[1743697565924,0.17623326,82090.0,82089.0,0.255819]
[1743697566300,0.02887326,82090.0,82089.0,0.255819]
[1743697566480,0.243602,82103.0,82099.0,0.243606]
[1743697566684,0.243604,82101.0,82097.0,0.255794]
[1743697566887,0.243602,82101.0,82098.0,0.243609]
[1743697567448,0.243599,82102.0,82098.0,0.243609]
[1743697567652,0.243584,82107.0,82103.0,0.243594]
[1743697567849,0.4158,82111.0,82109.0,0.243578]
[1743697568069,0.012179,82108.0,82101.0,0.01218]
[1743697568273,0.243596,82105.0,82101.0,0.243599]
[1743697568473,0.25576,82108.0,82102.0,0.012179]
[1743697568740,0.26311447,82109.0,82105.0,0.243588]
[1743697569171,0.01953647,82109.0,82106.0,0.243586]
[1743697569438,0.00901441,82110.0,82109.0,0.012178]
[1743697569577,0.00901441,82110.0,82109.0,0.255756]
[1743697569783,0.4158,82111.0,82105.0,0.00013807]
[1743697569784,0.255766,82106.0,82105.0,0.00013807]
[1743697570205,0.37866897,82106.0,82105.0,0.00013807]
[1743697570376,0.4877531,82106.0,82105.0,0.00013807]
[1743697570578,0.6101641,82106.0,82105.0,0.00013807]
[1743697570821,0.4877531,82106.0,82105.0,0.00013807]
[1743697571143,0.37866897,82106.0,82105.0,0.00013807]
[1743697573598,2.48039097,82106.0,82105.0,0.00013807]
[1743697573800,1.98624097,82106.0,82105.0,0.00013807]
[1743697574229,2.00078182,82106.0,82105.0,0.00013807]
[1743697574428,1.93126782,82106.0,82105.0,0.00013807]
[1743697574678,1.89933082,82106.0,82105.0,0.00013807]
[1743697574887,2.0107715,82106.0,82105.0,0.00013807]
[1743697575050,1.42788297,82106.0,82105.0,0.00013807]
[1743697575210,2.48064297,82106.0,82105.0,0.00013807]
[1743697575811,2.48164297,82106.0,82105.0,0.00013807]
[1743697577035,1.58078897,82106.0,82105.0,0.00013807]
[1743697577432,1.05476,82106.0,82105.0,0.25590707]
[1743697577674,1.43342897,82106.0,82105.0,0.00013807]
[1743697578029,1.85131865,82106.0,82105.0,0.00013807]
[1743697578291,1.85031865,82106.0,82105.0,0.00013807]
[1743697578434,1.8638595,82106.0,82105.0,0.00013807]
[1743697579608,2.2796595,82106.0,82105.0,0.00013807]
[1743697580267,2.15676182,82106.0,82105.0,0.00013807]
[1743697581398,2.15776182,82106.0,82105.0,0.00013807]
[1743697581764,2.15876182,82106.0,82105.0,0.00013807]
[1743697582698,2.16376182,82106.0,82105.0,7e-08]
[1743697582839,1.9916675,82106.0,82105.0,7e-08]
[1743697583440,1.9866675,82106.0,82105.0,7e-08]
[1743697583691,2.01376982,82106.0,82105.0,7e-08]
[1743697584087,2.01176982,82106.0,82105.0,7e-08]
[1743697584502,2.02176982,82106.0,82105.0,7e-08]
[1743697584906,2.01676982,82106.0,82105.0,7e-08]
[1743697585284,2.02176982,82106.0,82105.0,7e-08]
[1743697585820,2.01676982,82106.0,82105.0,7e-08]
[1743697586246,0.25584,82082.0,82081.0,0.004]
[1743697586456,0.243656,82083.0,82081.0,0.00413825]
[1743697586820,0.243658,82082.0,82081.0,0.00413825]
[1743697587017,0.012181,82092.0,82087.0,0.243641]
[1743697587232,0.012181,82092.0,82086.0,0.012182]
[1743697587233,0.12290297,82092.0,82086.0,0.255828]
[1743697587385,0.243641,82088.0,82084.0,0.243652]
[1743697587582,0.012181,82090.0,82085.0,0.243648]
[1743697587801,0.24364,82088.0,82084.0,0.012182]
[1743697588168,0.255831,82086.0,82081.0,0.00413825]
[1743697588392,0.243656,82083.0,82081.0,0.00413825]
[1743697588573,0.243653,82084.0,82081.0,0.24779725]
[1743697588774,0.243649,82085.0,82082.0,0.243658]
[1743697588979,0.4158,82100.0,82099.0,0.255788]
[1743697589182,0.243603,82101.0,82098.0,0.243608]
[1743697589400,0.255776,82103.0,82098.0,0.243608]
[1743697589585,1.05276,82106.0,82102.0,0.243599]
[1743697589824,1.05276,82106.0,82102.0,0.255778]
[1743697590024,1.05276,82106.0,82103.0,0.243593]
[1743697590155,0.243593,82105.0,82102.0,0.243598]
[1743697590357,0.012179,82105.0,82102.0,0.243598]
[1743697590555,0.243599,82102.0,82099.0,0.243608]
[1743697590756,0.012179,82102.0,82097.0,0.243613]
[1743697590958,0.012179,82105.0,82097.0,0.243613]
[1743697590959,0.243596,82104.0,82100.0,0.243604]
[1743697591181,0.012179,82105.0,82101.0,0.243601]
[1743697591348,0.243596,82104.0,82101.0,0.243601]
[1743697591550,0.243597,82103.0,82101.0,0.243601]
[1743697592006,0.243596,82104.0,82101.0,0.243601]
[1743697592358,0.00921907,82105.0,82103.0,0.243596]
[1743697592563,0.243593,82104.0,82101.0,0.243601]
[1743697592763,0.243603,82101.0,82098.0,0.243611]
[1743697592965,0.01218,82101.0,82095.0,0.057381]
[1743697593163,0.012179,82105.0,82098.0,0.25579]
[1743697593420,0.255772,82105.0,82102.0,0.243599]
[1743697593746,0.24359,82105.0,82102.0,0.243599]
[1743697593880,1.05276,82106.0,82105.0,0.255769]
[1743697594218,1.05276,82106.0,82103.0,0.255775]
[1743697594579,0.012179,82104.0,82096.0,0.243617]
[1743697594784,0.243604,82101.0,82098.0,0.24361]
[1743697594985,0.2436,82102.0,82100.0,0.243605]
[1743697595193,0.243593,82104.0,82100.0,0.243605]
[1743697595392,0.243596,82103.0,82100.0,0.243605]
[1743697595594,0.2436,82102.0,82100.0,0.243605]
[1743697595795,0.243607,82101.0,82098.0,0.243609]
[1743697596359,0.01218,82101.0,82095.0,0.0452]
[1743697596473,0.243616,82097.0,82095.0,0.0452]
[1743697596675,0.243617,82096.0,82095.0,0.0452]
[1743697597078,0.243617,82096.0,82061.0,0.045]
[1743697597079,0.12290297,82096.0,82086.0,0.0487]
[1743697597277,0.243619,82096.0,82089.0,0.012181]
[1743697597517,0.243631,82092.0,82088.0,0.24364]
[1743697597751,0.243632,82091.0,82086.0,0.292346]
[1743697598135,0.243636,82090.0,82086.0,0.292346]
[1743697598342,0.243632,82091.0,82086.0,0.304528]
[1743697598563,0.243632,82091.0,82087.0,0.243643]
[1743697598768,0.243631,82093.0,82089.0,0.243636]
[1743697598963,0.243616,82097.0,82090.0,0.012181]
[1743697599143,0.243616,82097.0,82092.0,0.243628]
[1743697599572,0.243616,82097.0,82086.0,0.0487]
[1743697599573,0.243641,82088.0,82086.0,0.0487]
[1743697599765,0.243643,82088.0,82086.0,0.0487]
[1743697599910,0.243643,82087.0,82086.0,0.0487]
[1743697600118,0.243643,82089.0,82086.0,0.0487]
[1743697600743,0.243643,82088.0,82086.0,0.0487]
[1743697600917,0.255825,82087.0,82086.0,0.0487]
[1743697601101,0.243682,82074.0,82073.0,0.0487]
[1743697601309,0.243676,82076.0,82073.0,0.0487]
[1743697601568,0.243675,82077.0,82073.0,0.0487]
[1743697601774,0.243667,82079.0,82073.0,0.0487]
[1743697602021,0.243671,82078.0,82075.0,0.243679]
[1743697602224,0.25585,82080.0,82075.0,0.243679]
[1743697602525,0.24367,82079.0,82075.0,0.243679]
[1743697602637,0.24367,82079.0,82073.0,0.0487]
[1743697602638,0.255866,82074.0,82073.0,0.0487]
[1743697602840,0.012183,82077.0,82073.0,0.0487]
[1743697603041,0.25298908,82077.0,82073.0,0.292384]
[1743697603242,0.25298908,82077.0,82074.0,0.243682]
[1743697603447,0.012183,82076.0,82073.0,0.0487]